fUST/lending_fUST_20250228
["ID","MTS","AMOUNT","RATE_DAILY","PERIOD"]
[354813113,1740713442046,-500.0,0.00055335,120]
[354813114,1740713442055,-664.29,0.00055335,120]
[354813115,1740713442065,-294.22466614,0.00055335,120]
[354813116,1740713442074,-500.0,0.00055335,120]
[354813117,1740713442083,-500.0,0.00055335,120]
[354813118,1740713442093,-658.08,0.00055335,120]
[354813119,1740713442102,-507.63133848,0.00055335,120]
[354813120,1740713442111,-746.15,0.00055335,120]
[354813121,1740713442120,-447.45,0.00055335,120]
[354813122,1740713442129,-694.55,0.00055335,120]
[354813123,1740713442138,-500.0,0.00055335,120]
[354813124,1740713442148,-875.94,0.00055335,120]
[354813125,1740713442157,-500.0,0.00055335,120]
[354813126,1740713442166,-562.84473492,0.00055335,120]
[354813127,1740713442176,-500.0,0.00055335,120]
[354813128,1740713442185,-500.0,0.00055335,120]
[354813129,1740713442195,-500.0,0.00055335,120]
[354813130,1740713442204,-500.0,0.00055335,30]
[354813131,1740713442216,-598.54,0.00055335,120]
[354813132,1740713442225,-500.0,0.00055335,120]
[354813133,1740713442235,-500.0,0.00055335,120]
[354813134,1740713442244,-500.8804793,0.00055335,120]
[354813135,1740713442254,-500.0,0.00055335,120]
[354813136,1740713442263,-500.0,0.00055335,120]
[354813137,1740713442272,-500.0,0.00055335,120]
[354813138,1740713442281,-662.27,0.00055335,120]
[354813139,1740713442291,-500.0,0.00055335,120]
[354813140,1740713442300,-500.0,0.00055335,120]
[354813141,1740713442309,-502.80877396,0.00055335,120]
[354813142,1740713442318,-500.0,0.00055335,120]
[354813143,1740713442393,-500.0,0.00055335,120]
[354813144,1740713442403,-539.10579414,0.00055335,2]
[354813145,1740713442413,-501.61525409,0.00055335,120]
[354813146,1740713442422,-500.0,0.00055335,120]
[354813147,1740713442432,-500.0,0.00055335,120]
[354813148,1740713442442,-500.0,0.00055335,120]
[354813149,1740713442460,-500.0,0.00055335,120]
[354813150,1740713442469,-236.743,0.00055335,120]
[354813151,1740713442479,-1273.0,0.00055335,120]
[354813152,1740713442489,-500.0,0.00055335,120]
[354813153,1740713442500,-644.09,0.00055335,120]
[354813154,1740713442510,-500.0,0.00055335,120]
[354813155,1740713442519,-500.0,0.00055335,120]
[354813156,1740713442530,-548.61,0.00055335,120]
[354813157,1740713442540,-500.0,0.00055335,120]
[354813158,1740713442550,-12574.99,0.00055335,7]
[354813159,1740713442560,-500.0,0.00055335,120]
[354813160,1740713442569,-500.0,0.00055335,120]
[354813161,1740713442578,-500.0,0.00055335,120]
[354813162,1740713442588,-501.32595158,0.00055335,120]
[354813163,1740713442597,-500.0,0.00055335,120]
[354813164,1740713442607,-669.72,0.00055335,120]
[354813165,1740713442616,-500.0,0.00055335,120]
[354813166,1740713442625,-500.0,0.00055335,120]
[354813167,1740713442635,-500.0,0.00055335,120]
[354813168,1740713442645,-500.0,0.00055335,120]
[354813169,1740713442654,-779.47,0.00055335,120]
[354813170,1740713442664,-502.77720495,0.00055335,120]
[354813171,1740713442674,-505.62581505,0.00055335,120]
[354813172,1740713442683,-500.0,0.00055335,120]
[354813173,1740713442692,-500.0,0.00055335,120]
[354813174,1740713442705,-1193.87,0.00055335,120]
[354813175,1740713442715,-500.0,0.00055335,120]
[354813176,1740713442725,-580.14,0.00055335,120]
[354813177,1740713442734,-500.0,0.00055335,120]
[354813178,1740713442744,-500.0,0.00055335,120]
[354813179,1740713442754,-500.0,0.00055335,120]
[354813180,1740713442763,-500.0,0.00055335,45]
[354813181,1740713442773,-5142.81,0.00055335,120]
[354813182,1740713442783,-500.0,0.00055335,120]
[354813183,1740713442792,-509.61495375,0.00055335,20]
[354813184,1740713442802,-5677.88,0.00055335,120]
[354813185,1740713442812,-500.0,0.00055335,120]
[354813186,1740713442822,-500.0,0.00055335,120]
[354813187,1740713442831,-906.21,0.00055335,120]
[354813188,1740713442840,-500.0,0.00055335,120]
[354813189,1740713442849,-500.0,0.00055335,120]
[354813190,1740713442859,-500.0,0.00055335,120]
[354813191,1740713442868,-540.15,0.00055335,120]
[354813192,1740713442877,-500.0,0.00055335,120]
[354813193,1740713442887,-500.0,0.00055335,120]
[354813194,1740713442896,-500.0,0.00055335,120]
[354813195,1740713442905,-500.0,0.00055335,120]
[354813196,1740713442914,-500.0,0.00055335,120]
[354813197,1740713442923,-406.52233496,0.00055335,120]
[354813198,1740713442932,-500.0,0.00055335,120]
[354813199,1740713442942,-870.54,0.00055335,120]
[354813200,1740713442955,-500.0,0.00055335,120]
[354813201,1740713442964,-500.0,0.00055335,120]
[354813202,1740713442974,-500.0,0.00055335,120]
[354813203,1740713442983,-402.16262827,0.00055335,120]
[354813204,1740713442991,-500.0,0.00055335,120]
[354813205,1740713443001,-500.0,0.00055335,120]
[354813206,1740713443010,-514.7509022,0.00055335,120]
[354813207,1740713443019,-500.0,0.00055335,120]
[354813208,1740713443028,-73000.66,0.00055335,7]
[354813210,1740713443037,-500.0,0.00055335,120]
[354813212,1740713443047,-565.24,0.00055335,120]
[354813214,1740713443056,-500.0,0.00055335,120]
[354813215,1740713443065,-515.98146055,0.00055335,120]
[354813217,1740713443074,-1000.0,0.00055335,60]
[354813218,1740713443084,-1807.0,0.00055335,120]
[354813219,1740713443093,-500.0,0.00055335,120]
[354813221,1740713443103,-500.0,0.00055335,120]
[354813223,1740713443112,-584.7,0.00055335,120]
[354813224,1740713443121,-8662.29,0.00055335,120]
[354813225,1740713443131,-589.99,0.00055335,120]
[354813226,1740713443140,-535.41,0.00055335,120]
[354813227,1740713443149,-502.36306119,0.00055335,120]
[354813228,1740713443159,-500.0,0.00055335,120]
[354813229,1740713443168,-614.75,0.00055335,120]
[354813230,1740713443177,-500.0,0.00055335,120]
[354813231,1740713443186,-500.0,0.00055335,120]
[354813232,1740713443196,-500.0,0.00055335,120]
[354813233,1740713443206,-500.0,0.00055335,120]
[354813234,1740713443215,-500.0,0.00055335,120]
[354813235,1740713443224,-500.0,0.00055335,120]
[354813236,1740713443233,-508.7,0.00055335,120]
[354813237,1740713443241,-500.0,0.00055335,120]
[354813238,1740713443251,-500.0,0.00055335,120]
[354813239,1740713443260,-500.0,0.00055335,120]
[354813241,1740713443269,-500.0,0.00055335,120]
[354813242,1740713443278,-500.0,0.00055335,120]
[354813243,1740713443287,-503.40794816,0.00055335,120]
[354813245,1740713443296,-500.0,0.00055335,120]
[354813247,1740713443305,-500.0,0.00055335,120]
[354813248,1740713443314,-262.05557108,0.00055335,120]
[354813252,1740713443324,-500.0,0.00055335,120]
[354813254,1740713443334,-500.0,0.00055335,120]
[354813255,1740713443343,-500.0,0.00055335,120]
[354813256,1740713443352,-500.0,0.00055336,120]
[354813260,1740713443425,-500.90889141,0.00055336,120]
[354813261,1740713443434,-500.0,0.00055336,30]
[354813262,1740713443444,-500.0,0.00055336,120]
[354813264,1740713443456,-500.0,0.00055336,120]
[354813266,1740713443465,-500.0,0.00055336,120]
[354813268,1740713443479,-500.0,0.00055336,120]
[354813270,1740713443489,-500.0,0.00055336,120]
[354813272,1740713443499,-501.11735223,0.00055336,120]
[354813274,1740713443508,-649.4644228,0.00055336,120]
[354813275,1740713443519,-500.0,0.00055336,120]
[354813276,1740713443528,-500.0,0.00055336,120]
[354813277,1740713443538,-500.0,0.00055336,120]
[354813278,1740713443548,-500.0,0.00055336,120]
[354813279,1740713443557,-500.0,0.00055373,15]
[354813280,1740713443567,-503.62426049,0.00055373,7]
[354813281,1740713443576,-535.77214952,0.00055373,15]
[354813282,1740713443586,-501.98248689,0.00055373,14]
[354813283,1740713443595,-500.23637955,0.00055373,15]
[354813284,1740713443605,-500.0,0.00055373,15]
[354813285,1740713443614,-500.0,0.00055373,14]
[354813286,1740713443624,-500.0,0.00055373,14]
[354813287,1740713443635,-191.69297023,0.00055373,14]
[354813288,1740713443643,-500.0,0.00055373,15]
[354813289,1740713443653,-501.07459073,0.00055373,14]
[354813290,1740713443662,-500.0,0.00055373,14]
[354813291,1740713443671,-500.0,0.00055373,15]
[354813292,1740713443681,-500.0,0.00055373,15]
[354813293,1740713443690,-502.51797223,0.00055373,15]
[354813294,1740713443702,-500.0,0.00055373,15]
[354813295,1740713443712,-511.90223858,0.00055373,15]
[354813296,1740713443722,-500.0,0.00055373,15]
[354813297,1740713443732,-500.0,0.00055373,15]
[354813298,1740713443741,-500.0,0.00055373,5]
[354813299,1740713443751,-500.0,0.00055373,7]
[354813300,1740713443760,-500.0,0.00055373,14]
[354813301,1740713443769,-500.0,0.00055411,120]
[354813302,1740713443778,-172.63558751,0.00055469,2]
[354813303,1740713443788,-500.0,0.00055546,35]
[354813304,1740713443797,-172.63558751,0.00055684,2]
[354813305,1740713443806,-500.0,0.00055685,120]
[354813306,1740713443816,-1000.0,0.000558,120]
[354813307,1740713443826,-172.63558751,0.000559,2]
[354813308,1740713443835,-1294.87311259,0.000559,120]
[354813309,1740713443844,-1294.87311259,0.000559,120]
[354813310,1740713443853,-1294.87311259,0.000559,120]
[354813311,1740713443865,-1294.87311259,0.000559,120]
[354813312,1740713443889,-1294.87311259,0.000559,120]
[354813313,1740713443905,-1294.87311259,0.000559,120]
[354813314,1740713443924,-1294.87311259,0.000559,120]
[354813315,1740713443943,-1294.87311259,0.000559,120]
[354813316,1740713443963,-1294.87311259,0.000559,120]
[354813317,1740713443979,-1294.87311259,0.000559,120]
[354813318,1740713443998,-1294.87311259,0.000559,120]
[354813319,1740713444013,-1294.87311259,0.000559,120]
[354813322,1740713444032,-1294.87311259,0.000559,120]
[354813324,1740713444051,-1294.87311259,0.000559,120]
[354813325,1740713444068,-1294.87311259,0.000559,120]
[354813326,1740713444082,-1294.87311259,0.000559,120]
[354813327,1740713444101,-1294.87311259,0.000559,120]
[354813328,1740713444114,-1294.87311259,0.000559,120]
[354813329,1740713444130,-1294.87311259,0.000559,120]
[354813330,1740713444143,-1294.87,0.000559,120]
[354813331,1740713444157,-3021.37059605,0.000559,120]
[354813332,1740713444172,-2689.73334095,0.000559,120]
[354813343,1740713448440,-500.0,0.00055137,120]
[354813344,1740713448449,-500.0,0.00055137,120]
[354813345,1740713448465,-500.0,0.00055137,120]
[354813346,1740713448475,-2402.22,0.0005589,10]
[354813347,1740713448484,-331.6372551,0.000559,120]
[354813348,1740713448493,-3021.37059605,0.000559,120]
[354813349,1740713448503,-3021.37059605,0.000559,120]
[354813350,1740713448513,-3021.37059605,0.000559,120]
[354813351,1740713448522,-3021.37059605,0.000559,120]
[354813352,1740713448531,-3021.37059605,0.000559,120]
[354813353,1740713448542,-3021.37059605,0.000559,120]
[354813354,1740713448552,-3021.37059605,0.000559,120]
[354813355,1740713448561,-3021.37059605,0.000559,120]
[354813356,1740713448571,-3021.37059605,0.000559,120]
[354813357,1740713448580,-3021.37059605,0.000559,120]
[354813358,1740713448589,-3021.37059605,0.000559,120]
[354813359,1740713448598,-3021.37059605,0.000559,120]
[354813360,1740713448608,-3021.37059605,0.000559,120]
[354813361,1740713448617,-432.08320727,0.000559,120]
[354813362,1740713448626,-432.08320727,0.000559,120]
[354813363,1740713448635,-432.08320727,0.000559,120]
[354813364,1740713448645,-432.08320727,0.000559,120]
[354813365,1740713448655,-432.08320727,0.000559,120]
[354813366,1740713448750,-432.08320727,0.000559,120]
[354813367,1740713448765,-432.08320727,0.000559,120]
[354813368,1740713448775,-432.08320727,0.000559,120]
[354813369,1740713448784,-432.08320727,0.000559,120]
[354813370,1740713448793,-432.08320727,0.000559,120]
[354813371,1740713448803,-432.08320727,0.000559,120]
[354813372,1740713448812,-432.08320727,0.000559,120]
[354813373,1740713448825,-432.08320727,0.000559,120]
[354813374,1740713448834,-432.08320727,0.000559,120]
[354813375,1740713448843,-432.08320727,0.000559,120]
[354813376,1740713448853,-432.08320727,0.000559,120]
[354813377,1740713448862,-432.08320727,0.000559,120]
[354813378,1740713448871,-432.08320727,0.000559,120]
[354813379,1740713448881,-432.08320727,0.000559,120]
[354813380,1740713448890,-432.08,0.000559,120]
[354813381,1740713448899,-1008.19415029,0.000559,120]
[354813382,1740713448908,-1008.19415029,0.000559,120]
[354813383,1740713448917,-1008.19415029,0.000559,120]
[354813384,1740713448926,-1008.19415029,0.000559,120]
[354813385,1740713448935,-1008.19415029,0.000559,120]
[354813386,1740713448945,-1008.19415029,0.000559,120]
[354813387,1740713448954,-1008.19415029,0.000559,120]
[354813388,1740713448963,-1008.19415029,0.000559,120]
[354813389,1740713448973,-1008.19415029,0.000559,120]
[354813390,1740713448982,-1008.19415029,0.000559,120]
[354813391,1740713448992,-1008.19415029,0.000559,120]
[354813392,1740713449001,-1008.19415029,0.000559,120]
[354813393,1740713449010,-1008.19415029,0.000559,120]
[354813394,1740713449019,-1008.19415029,0.000559,120]
[354813395,1740713449029,-1008.19415029,0.000559,120]
[354813396,1740713449038,-294.34587848,0.000559,120]
[354813397,1740713449047,-294.34587848,0.000559,120]
[354813398,1740713449057,-294.34587848,0.000559,120]
[354813399,1740713449066,-294.34587848,0.000559,120]
[354813400,1740713449075,-294.34587848,0.000559,120]
[354813401,1740713449085,-294.34587848,0.000559,120]
[354813402,1740713449094,-294.34587848,0.000559,120]
[354813403,1740713449104,-294.34587848,0.000559,120]
[354813404,1740713449112,-294.34587848,0.000559,120]
[354813405,1740713449121,-294.34587848,0.000559,120]
[354813406,1740713449130,-294.34587848,0.000559,120]
[354813407,1740713449139,-294.34587848,0.000559,120]
[354813408,1740713449148,-294.34587848,0.000559,120]
[354813409,1740713449157,-294.34587848,0.000559,120]
[354813410,1740713449166,-294.34587848,0.000559,120]
[354813411,1740713449175,-294.34587848,0.000559,120]
[354813412,1740713449184,-294.34587848,0.000559,120]
[354813413,1740713449194,-294.34587848,0.000559,120]
[354813414,1740713449204,-294.34587848,0.000559,120]
[354813415,1740713449213,-294.34,0.000559,120]
[354813416,1740713449223,-686.80704978,0.000559,120]
[354813417,1740713449232,-686.80704978,0.000559,120]
[354813418,1740713449243,-686.80704978,0.000559,120]
[354813419,1740713449252,-686.80704978,0.000559,120]
[354813420,1740713449261,-686.80704978,0.000559,120]
[354813421,1740713449271,-686.80704978,0.000559,120]
[354813422,1740713449280,-686.80704978,0.000559,120]
[354813423,1740713449289,-686.80704978,0.000559,120]
[354813424,1740713449302,-686.80704978,0.000559,120]
[354813425,1740713449312,-686.80704978,0.000559,120]
[354813426,1740713449321,-686.80704978,0.000559,120]
[354813427,1740713449330,-686.80704978,0.000559,120]
[354813428,1740713449339,-686.80704978,0.000559,120]
[354813429,1740713449348,-686.80704978,0.000559,120]
[354813430,1740713449357,-686.80704978,0.000559,120]
[354813431,1740713449367,-275.7380723,0.00055973,15]
[354813432,1740713449377,-500.0,0.00055973,10]
[354813433,1740713449387,-500.0,0.00055973,14]
[354813434,1740713449396,-500.0,0.00055973,14]
[354813435,1740713449406,-501.88477291,0.00055973,14]
[354813436,1740713449415,-500.0,0.00055973,14]
[354813437,1740713449425,-500.0,0.00055973,15]
[354813438,1740713449435,-451.24709908,0.00055973,14]
[354813439,1740713449444,-501.92335517,0.00055973,15]
[354813440,1740713449455,-500.42063548,0.00055973,2]
[354813441,1740713449465,-503.42970477,0.00055973,15]
[354813442,1740713449477,-500.0,0.00055973,15]
[354813443,1740713449485,-313.65283299,0.00055973,14]
[354813444,1740713449494,-500.0,0.00055973,15]
[354813445,1740713449503,-500.0,0.00055973,15]
[354813446,1740713449514,-500.0,0.00055973,14]
[354813447,1740713449523,-163.67444554,0.00055973,15]
[354813448,1740713449532,-500.0,0.00055973,15]
[354813449,1740713449542,-500.10133741,0.00055973,15]
[354813450,1740713449558,-500.0,0.00055973,15]
[354813451,1740713449568,-500.0,0.00055973,14]
[354813452,1740713449577,-600.8906255,0.00055973,7]
[354813453,1740713449586,-156033.9179917,0.00056,91]
[354813454,1740713449595,-87976.15895131,0.00056,63]
[354813455,1740713449605,-100000.0,0.00056,120]
[354813456,1740713449614,-326.19620691,0.00056,120]
[354813457,1740713449623,-346.56,0.00056094,40]
[354813458,1740713449632,-3021.37059605,0.00056139,120]
[354813459,1740713449641,-1008.19415029,0.00056139,120]
[354813460,1740713449650,-686.80704978,0.00056139,120]
[354813461,1740713449660,-151.0,0.000564,21]
[354813462,1740713449669,-3021.37059605,0.00056573,120]
[354813463,1740713449679,-1008.19415029,0.00056573,120]
[354813464,1740713449689,-686.80704978,0.00056573,120]
[354813465,1740713449699,-151.0,0.000566,26]
[354813466,1740713449709,-8547.0,0.00057,120]
[354813467,1740713449719,-151.0,0.00057,30]
[354813468,1740713449728,-151.0,0.00057,25]
[354813469,1740713449737,-1876.15578391,0.00057,120]
[354813470,1740713449746,-3021.37059605,0.00057007,120]
[354813471,1740713449755,-1008.19415029,0.00057007,120]
[354813472,1740713449764,-686.80704978,0.00057007,120]
[354813473,1740713449773,-151.0,0.000574,23]
[354813474,1740713449782,-3021.37059605,0.00057442,120]
[354813475,1740713449793,-1008.19415029,0.00057442,120]
[354813476,1740713449802,-686.80704978,0.00057442,120]
[354813477,1740713449811,-151.0,0.000575,28]
[354813478,1740713449883,-266.244482,0.00057527,120]
[354813479,1740713449893,-151.0,0.000578,27]
[354813480,1740713449903,-3021.37,0.00057876,120]
[354813481,1740713449912,-1008.19,0.00057876,120]
[354813482,1740713449922,-686.8,0.00057876,120]
[354813483,1740713449932,-500.0,0.00057973,15]
[354813484,1740713449942,-490.35464705,0.00057973,15]
[354813485,1740713449953,-500.0,0.00057973,15]
[354813486,1740713449962,-500.0,0.00057973,14]
[354813487,1740713449975,-500.0,0.00057973,15]
[354813488,1740713449986,-500.0,0.00057973,15]
[354813489,1740713449996,-500.87142249,0.00057973,15]
[354813490,1740713450005,-500.0,0.00057973,15]
[354813491,1740713450014,-501.55024892,0.00057973,15]
[354813492,1740713450023,-150.0,0.00057973,15]
[354813493,1740713450032,-150.0,0.00057973,2]
[354813494,1740713450042,-500.0,0.00057975,120]
[354813495,1740713450051,-500.0,0.00057975,120]
[354813496,1740713450060,-500.0,0.00057975,120]
[354813497,1740713450069,-500.0,0.00057975,120]
[354813498,1740713450080,-500.0,0.00057975,120]
[354813499,1740713450089,-500.0,0.00057975,120]
[354813500,1740713450098,-500.0,0.00057975,2]
[354813501,1740713450107,-500.0,0.00057975,120]
[354813502,1740713450116,-509.81340826,0.00057975,120]
[354813503,1740713450126,-414.2597198,0.00057975,120]
[354813504,1740713450135,-500.0,0.00057975,120]
[354813505,1740713450143,-500.0,0.00057975,120]
[354813506,1740713450153,-500.0,0.00057975,120]
[354813507,1740713450162,-500.0,0.00057975,120]
[354813508,1740713450172,-500.0,0.00057975,120]
[354813509,1740713450181,-500.0,0.00057975,120]
[354813510,1740713450192,-500.0,0.00057975,120]
[354813511,1740713450202,-500.0,0.00057975,120]
[354813512,1740713450212,-500.0,0.00057975,120]
[354813513,1740713450221,-500.0,0.00057975,120]
[354813514,1740713450231,-500.0,0.00057975,120]
[354813515,1740713450241,-500.0,0.00057975,120]
[354813516,1740713450251,-500.0,0.00057975,120]
[354813517,1740713450260,-500.0,0.00057975,120]
[354813518,1740713450269,-500.0,0.00057975,120]
[354813519,1740713450279,-500.0,0.00057975,120]
[354813520,1740713450290,-500.0,0.00057975,120]
[354813521,1740713450299,-200.0,0.00057975,7]
[354813522,1740713450309,-500.0,0.00057975,120]
[354813523,1740713450318,-500.0,0.00057975,120]
[354813524,1740713450327,-500.0,0.00057975,120]
[354813525,1740713450336,-500.0,0.00057975,120]
[354813526,1740713450346,-539.28002543,0.00057975,120]
[354813527,1740713450355,-500.0,0.00057975,120]
[354813528,1740713450365,-503.70781575,0.00057975,120]
[354813529,1740713450374,-533.2303925,0.00057975,120]
[354813530,1740713450383,-500.0,0.00057975,120]
[354813531,1740713450392,-500.0,0.00057975,120]
[354813532,1740713450401,-500.0,0.00057975,120]
[354813533,1740713450410,-500.0,0.00057975,120]
[354813534,1740713450421,-500.0,0.00057975,120]
[354813535,1740713450430,-500.0,0.00057975,120]
[354813536,1740713450440,-619.33900991,0.00057975,120]
[354813537,1740713450449,-500.0,0.00057975,120]
[354813538,1740713450464,-500.0,0.00057975,120]
[354813539,1740713450473,-500.0,0.00057975,120]
[354813540,1740713450483,-687.5,0.00057975,120]
[354813541,1740713450492,-500.0,0.00057975,120]
[354813542,1740713450503,-500.0,0.00057975,120]
[354813543,1740713450512,-500.0,0.00057975,120]
[354813544,1740713450522,-500.0,0.00057975,120]
[354813545,1740713450531,-500.0,0.00057975,120]
[354813546,1740713450541,-503.80592057,0.00057975,120]
[354813547,1740713450552,-500.0,0.00057975,120]
[354813548,1740713450561,-500.0,0.00057975,120]
[354813549,1740713450571,-401.4092569,0.00057975,120]
[354813550,1740713450579,-500.0,0.00057975,120]
[354813551,1740713450589,-500.0,0.00057975,120]
[354813552,1740713450598,-500.0,0.00057975,120]
[354813553,1740713450607,-500.0,0.00057975,120]
[354813554,1740713450616,-413.91529121,0.00057975,120]
[354813555,1740713450625,-616.29,0.00057975,120]
[354813556,1740713450635,-500.0,0.00057975,120]
[354813557,1740713450644,-500.0,0.00057975,120]
[354813558,1740713450654,-500.0,0.00057975,120]
[354813559,1740713450664,-500.0,0.00057975,120]
[354813560,1740713450674,-500.0,0.00057975,120]
[354813561,1740713450683,-500.0,0.00057975,120]
[354813562,1740713450692,-500.0,0.00057975,120]
[354813563,1740713450701,-500.0,0.00057975,120]
[354813564,1740713450711,-500.0,0.00057975,120]
[354813565,1740713450720,-500.0,0.00057975,120]
[354813566,1740713450730,-588.82,0.00057975,120]
[354813567,1740713450739,-500.0,0.00057975,120]
[354813568,1740713450748,-500.0,0.00057975,120]
[354813569,1740713450757,-500.0,0.00057975,120]
[354813570,1740713450766,-500.0,0.00057975,120]
[354813571,1740713450775,-500.0,0.00057975,120]
[354813572,1740713450784,-584.07169535,0.00057975,120]
[354813573,1740713450793,-500.0,0.00057975,120]
[354813574,1740713450802,-500.0,0.00057975,120]
[354813575,1740713450811,-500.0,0.00057975,120]
[354813576,1740713450821,-504.327497,0.00057975,120]
[354813577,1740713450830,-500.0,0.00057975,120]
[354813578,1740713450838,-500.0,0.00057975,120]
[354813579,1740713450847,-500.0,0.00057975,120]
[354813580,1740713450856,-500.0,0.00057975,120]
[354813581,1740713450866,-500.0,0.00057975,120]
[354813582,1740713450875,-500.0,0.00057975,120]
[354813583,1740713450944,-502.06293164,0.00057975,120]
[354813584,1740713450954,-500.0,0.00057975,120]
[354813585,1740713450963,-532.10514834,0.00057975,120]
[354813586,1740713450973,-500.0,0.00057975,120]
[354813587,1740713450982,-500.0,0.00057975,120]
[354813588,1740713450992,-500.0,0.00057975,120]
[354813589,1740713451001,-500.0,0.00057975,120]
[354813590,1740713451010,-500.0,0.00057975,120]
[354813591,1740713451020,-504.13192756,0.00057975,120]
[354813592,1740713451029,-500.0,0.00057975,120]
[354813593,1740713451038,-250.0,0.00057975,120]
[354813594,1740713451047,-367.10711262,0.00057975,120]
[354813595,1740713451056,-500.0,0.00057975,120]
[354813596,1740713451065,-500.0,0.00057975,120]
[354813597,1740713451074,-500.0,0.00057975,120]
[354813598,1740713451083,-500.0,0.00057975,120]
[354813599,1740713451092,-505.77186963,0.00057975,120]
[354813600,1740713451101,-500.0,0.00057975,120]
[354813601,1740713451110,-500.0,0.00057975,120]
[354813602,1740713451119,-500.0,0.00057975,120]
[354813603,1740713451129,-500.0,0.00057975,120]
[354813604,1740713451139,-500.0,0.00057975,120]
[354813605,1740713451149,-500.0,0.00057975,120]
[354813606,1740713451159,-500.0,0.00057975,120]
[354813607,1740713451168,-500.0,0.00057975,120]
[354813608,1740713451177,-500.0,0.00057975,120]
[354813609,1740713451187,-404.67312277,0.00057975,120]
[354813610,1740713451196,-500.0,0.00057975,120]
[354813611,1740713451207,-500.0,0.00057975,120]
[354813612,1740713451216,-500.0,0.00057975,120]
[354813613,1740713451225,-336.84617176,0.00057975,120]
[354813614,1740713451234,-500.0,0.00057975,120]
[354813615,1740713451243,-500.0,0.00057975,120]
[354813616,1740713451253,-500.0,0.00057975,120]
[354813617,1740713451262,-500.0,0.00057975,120]
[354813618,1740713451271,-504.17726621,0.00057975,120]
[354813619,1740713451281,-500.0,0.00057975,120]
[354813620,1740713451290,-500.0,0.00057975,120]
[354813621,1740713451299,-500.0,0.00057975,120]
[354813622,1740713451308,-641.10793918,0.00057975,120]
[354813623,1740713451318,-503.7866248,0.00057975,120]
[354813624,1740713451328,-500.0,0.00057975,120]
[354813625,1740713451337,-500.0,0.00057975,120]
[354813626,1740713451345,-505.66866628,0.00057975,120]
[354813627,1740713451355,-500.0,0.00057975,120]
[354813628,1740713451364,-500.0,0.00057975,120]
[354813629,1740713451373,-500.0,0.00057975,120]
[354813630,1740713451389,-506.28203596,0.00057975,120]
[354813631,1740713451405,-500.0,0.00057975,120]
[354813632,1740713451421,-500.0,0.00057975,120]
[354813633,1740713451438,-501.70014565,0.00057975,120]
[354813634,1740713451458,-501.23262276,0.00057975,120]
[354813635,1740713451476,-502.91799587,0.00057975,120]
[354813636,1740713451492,-500.0,0.00057975,120]
[354813637,1740713451507,-500.0,0.00057975,120]
[354813638,1740713451522,-500.0,0.00057975,120]
[354813639,1740713451539,-500.0,0.00057975,120]
[354813640,1740713451557,-500.0,0.00057975,120]
[354813641,1740713451575,-500.0,0.00057975,120]
[354813642,1740713451588,-500.0,0.00057975,120]
[354813643,1740713451606,-500.0,0.00057975,120]
[354813644,1740713451620,-500.0,0.00057975,120]
[354813645,1740713451636,-500.0,0.00057975,120]
[354813646,1740713451648,-500.0,0.00057975,120]
[354813647,1740713451662,-500.0,0.00057975,120]